bitfinex-derivatives/quotes_BNBF0:USTF0_20250413
["timestamp","ask_amount","ask_price","bid_price","bid_amount"]
[1744532472842,0.30966561,594.07,592.99,0.33727381]
[1744532473142,0.30966561,594.06,592.99,0.33727381]
[1744532473340,0.30966561,594.16,592.99,0.33727381]
[1744532473535,0.30966561,594.15,592.99,0.33727381]
[1744532473740,0.30966561,594.16,592.99,0.33727381]
[1744532474037,0.30966561,594.15,592.99,0.33727381]
[1744532474249,0.30966561,594.16,592.99,0.33727381]
[1744532474443,0.30966561,594.15,592.99,0.33727381]
[1744532474645,0.30966561,594.16,592.99,0.33727381]
[1744532474840,0.30966561,594.14,592.99,0.33727381]
[1744532475040,0.30966561,594.13,592.99,0.33727381]
[1744532475243,0.30966561,594.12,592.99,0.33727381]
[1744532475439,0.30966561,594.11,592.99,0.33727381]
[1744532475643,0.30966561,594.16,592.99,0.33727381]
[1744532475841,0.30966561,594.15,592.99,0.33727381]
[1744532476040,0.30966561,594.14,592.99,0.33727381]
[1744532476244,0.30966561,594.16,592.99,0.33727381]
[1744532476444,0.29320078,594.13,592.99,0.33727381]
[1744532476640,0.30966561,594.12,592.99,0.33727381]
[1744532476946,0.30966016,594.11,593.0,0.839]
[1744532477247,0.30966016,594.11,593.02,0.33725675]
[1744532477839,0.30966016,594.12,593.02,0.33725675]
[1744532478846,0.29320078,594.13,593.02,0.33725675]
[1744532479040,0.30965287,594.12,593.02,0.33725675]
[1744532479440,0.30965287,594.54,593.02,0.33725675]
[1744532479642,1.28407166,594.55,593.02,0.33725675]
[1744532479643,0.29320325,594.12,593.02,0.33725675]
[1744532479843,0.33640018,594.53,593.02,0.33725675]
[1744532480144,0.30961055,594.52,593.02,0.33725675]
[1744532480846,0.29313409,594.51,593.02,0.33725675]
[1744532481047,0.30961055,594.5,593.02,0.33725675]
[1744532481843,0.6460277,594.5,593.02,0.33725675]
[1744532482048,0.30961055,594.49,593.02,0.33725675]
[1744532482445,0.29315014,594.48,593.02,0.33725675]
[1744532482641,0.30961055,594.47,593.02,0.33725675]
[1744532483546,0.30962299,594.46,593.02,0.33725675]
[1744532483742,0.30962299,594.47,593.02,0.33725675]
[1744532483947,0.30962299,594.46,593.02,0.33725675]
[1744532484145,0.30962299,594.47,593.02,0.33725675]
[1744532484346,0.30962299,594.45,593.02,0.33725675]
[1744532484547,0.30962299,594.44,593.02,0.33725675]
[1744532484743,0.30962299,594.43,593.02,0.33725675]
[1744532484943,0.30962299,594.47,593.02,0.88625675]
[1744532485142,0.30962223,594.46,593.02,0.88625675]
[1744532485342,0.29315014,594.48,593.02,0.88625675]
[1744532485343,0.64605636,594.47,593.02,0.88625675]
[1744532485643,0.30962223,594.46,593.02,0.88625675]
[1744532486246,0.30962223,594.45,593.03,0.30386698]
[1744532486444,0.64607334,594.44,593.04,0.33724537]
[1744532486646,0.6461169,594.43,593.05,0.30386951]
[1744532486951,0.64612256,594.42,593.06,0.337234]
[1744532487151,0.64612822,594.41,593.06,0.337234]
[1744532487351,0.30966013,594.4,593.06,0.337234]
[1744532487546,0.30966013,594.39,593.06,0.337234]
[1744532487747,0.30966013,594.38,593.06,0.337234]
[1744532487951,0.30966013,594.37,593.06,0.337234]
[1744532488151,0.33646809,594.41,593.06,0.337234]
[1744532488152,1.28407166,594.34,593.06,0.337234]
[1744532488446,0.30965316,594.33,593.06,0.337234]
[1744532488747,0.30965316,594.32,593.06,0.337234]
[1744532488952,0.30965316,594.31,593.06,0.337234]
[1744532489152,0.30965316,594.3,593.06,0.337234]
[1744532489351,0.30965316,594.29,593.06,0.337234]
[1744532489552,0.30965316,594.28,593.06,0.337234]
[1744532489853,0.30965316,594.27,593.06,0.337234]
[1744532490049,0.30965316,594.28,593.06,0.337234]
[1744532490247,0.30965316,594.27,593.06,0.337234]
[1744532490445,0.30965316,594.26,593.06,0.337234]
[1744532490651,0.30965316,594.28,593.06,0.337234]
[1744532490852,0.30965316,594.27,593.06,1.181234]
[1744532491051,0.30965316,594.26,593.06,1.181234]
[1744532491354,0.30965316,594.25,593.06,1.181234]
[1744532491554,1.28407166,594.4,593.06,1.181234]
[1744532491555,0.30965316,594.24,593.06,1.181234]
[1744532491755,0.30965316,594.39,593.06,1.181234]
[1744532491956,0.64613823,594.38,593.06,1.181234]
[1744532492255,0.30965316,594.37,593.06,1.181234]
[1744532492456,0.30965316,594.36,593.06,1.181234]
[1744532492753,0.30965316,594.35,593.06,1.181234]
[1744532492955,1.59372482,594.34,593.06,1.181234]
[1744532493153,0.30965316,594.33,593.06,1.181234]
[1744532493353,0.30965316,594.32,593.06,1.181234]
[1744532493555,0.30965316,594.31,593.06,1.181234]
[1744532493749,0.30965316,594.3,593.06,2.029234]
[1744532493952,0.30965316,594.33,593.06,2.029234]
[1744532494153,0.30965316,594.32,593.06,2.029234]
[1744532494352,0.33651338,594.33,593.06,2.029234]
[1744532494553,0.3096909,594.32,593.06,2.029234]
[1744532494753,0.3096909,594.31,593.06,2.029234]
[1744532495056,0.3096909,594.3,593.06,2.029234]
[1744532495253,0.3096909,594.29,593.06,2.029234]
[1744532495455,0.3096909,594.28,593.06,2.029234]
[1744532495655,0.3096909,594.27,593.06,2.029234]
[1744532495953,0.3096909,594.26,593.06,2.029234]
[1744532496153,0.3096909,594.32,593.06,2.029234]
[1744532496354,0.3096909,594.31,593.06,2.029234]
[1744532496560,0.3096909,594.3,593.06,2.684234]
[1744532496762,0.3096909,594.29,593.06,2.684234]
[1744532496959,0.3096909,594.32,593.06,2.684234]
[1744532497160,0.3096909,594.31,593.06,2.684234]
[1744532497361,0.3096909,594.3,593.06,2.684234]
[1744532497561,0.30970561,594.29,593.06,2.684234]
[1744532497755,0.30970561,594.32,593.06,2.684234]
[1744532497958,0.30970561,594.31,593.06,2.684234]
[1744532498163,0.30970561,594.3,593.06,2.684234]
[1744532498461,0.30970561,594.29,593.06,2.684234]
[1744532498657,0.29320572,594.29,593.06,2.684234]
[1744532498861,0.30970561,594.28,593.06,2.684234]
[1744532499259,0.30970561,594.28,593.06,3.441234]
[1744532499962,0.30970561,594.27,593.06,3.441234]
[1744532500159,0.30970561,594.26,593.06,3.441234]
[1744532500359,0.30970126,594.25,593.06,3.441234]
[1744532500664,0.30970126,594.24,593.06,3.441234]
[1744532500865,0.30970126,594.23,593.06,3.441234]
[1744532501064,0.30970126,594.25,593.06,3.441234]
[1744532501267,0.30970126,594.24,593.06,3.441234]
[1744532501461,0.30970126,594.25,593.06,3.441234]
[1744532501765,0.30970126,594.24,593.06,3.441234]
[1744532501962,0.30970126,594.23,593.06,3.441234]
[1744532502167,0.30970126,594.25,593.06,3.441234]
[1744532502367,0.30970126,594.24,593.06,3.441234]
[1744532502667,0.30970126,594.23,593.06,3.441234]
[1744532502868,0.30970126,594.22,593.06,3.441234]
[1744532503167,0.30970126,594.21,593.06,3.441234]
[1744532503467,0.30970126,594.2,593.06,3.441234]
[1744532503667,0.30970126,594.19,593.06,3.441234]
[1744532503867,1.28407166,594.32,593.06,3.441234]
[1744532504067,0.64623847,594.31,593.06,3.441234]
[1744532504268,0.64624414,594.3,593.06,3.441234]
[1744532504468,0.6462498,594.29,593.06,3.441234]
[1744532504661,0.64625546,594.28,593.06,3.441234]
[1744532504863,1.28407166,594.26,593.06,3.441234]
[1744532505063,0.30971377,594.25,593.06,3.441234]
[1744532505365,0.30971377,594.24,593.06,3.441234]
[1744532505564,0.3097148,594.23,593.06,3.441234]
[1744532505766,0.3097148,594.22,593.06,3.441234]
[1744532505966,0.3097148,594.21,593.06,3.441234]
[1744532506167,0.3097148,594.2,593.06,3.441234]
[1744532506366,0.3097148,594.19,593.06,3.441234]
[1744532506567,0.3097148,594.18,593.06,3.441234]
[1744532506767,0.3097148,594.17,593.06,3.441234]
[1744532507063,0.3097148,594.16,593.06,3.441234]
[1744532507264,0.3097148,594.15,593.06,3.441234]
[1744532507464,0.33654169,594.28,593.06,3.441234]
[1744532507465,0.3097148,594.14,593.06,3.441234]
[1744532507667,1.28407166,594.16,593.06,3.441234]
[1744532507668,0.3097148,594.13,593.06,3.441234]
[1744532507866,0.3097148,594.12,593.06,3.441234]
[1744532508071,0.3097148,594.14,593.06,3.441234]
[1744532508270,0.3097148,594.13,593.06,3.441234]
[1744532508570,0.3097148,594.12,593.06,3.441234]
[1744532508770,0.3097148,594.14,593.06,3.441234]
[1744532508970,0.3097148,594.13,593.06,3.441234]
[1744532509170,0.3097148,594.12,593.06,3.441234]
[1744532509371,0.3097148,594.14,593.06,3.441234]
[1744532509572,0.29324031,594.11,593.06,3.441234]
[1744532509767,0.3097148,594.1,593.06,3.441234]
[1744532512571,0.60296252,594.09,593.06,3.441234]
[1744532512772,0.3097148,594.08,593.06,4.133234]
[1744532513567,0.3097148,594.08,593.06,4.722234]
[1744532514972,0.29324772,594.09,593.06,4.722234]
[1744532515173,0.30971148,594.08,593.06,4.722234]
[1744532515570,0.30971148,594.17,593.06,4.722234]
[1744532515766,0.29325019,594.07,593.06,4.722234]
[1744532515971,0.30971148,594.06,593.06,4.722234]
[1744532516168,0.30971148,594.17,593.06,4.722234]
[1744532516472,0.30971148,594.16,593.06,4.722234]
[1744532516672,0.30972064,594.15,593.06,4.722234]
[1744532516873,0.30972064,594.17,593.06,4.722234]
[1744532517070,0.30972064,594.16,593.06,4.722234]
[1744532517274,0.29323907,594.16,593.06,4.722234]
[1744532517477,0.30972064,594.15,593.06,4.722234]
[1744532517776,0.30972064,594.14,593.06,4.722234]
[1744532518070,0.30972064,594.13,593.06,4.722234]
[1744532518273,0.30972064,594.15,593.06,4.722234]
[1744532518475,0.30972064,594.14,593.06,4.722234]
[1744532518676,0.29324525,594.14,593.06,4.722234]
[1744532518876,0.30972064,594.13,593.06,4.722234]
[1744532519875,0.30972771,594.12,593.06,4.722234]
[1744532520080,0.30972771,594.13,593.06,4.722234]
[1744532521579,0.30972771,594.19,593.06,4.722234]
[1744532521780,0.30972771,594.18,593.06,4.722234]
[1744532521981,0.30972771,594.17,593.06,4.722234]
[1744532522182,0.30972771,594.16,593.06,4.722234]
[1744532522482,0.30972771,594.15,593.06,4.722234]
[1744532522677,0.30972771,594.14,593.06,4.722234]
[1744532522876,0.30972771,594.13,593.06,4.722234]
[1744532523176,0.30972771,594.12,593.06,4.722234]
[1744532523480,0.30972771,594.11,593.06,4.722234]
[1744532523682,0.30972771,594.1,593.06,4.722234]
[1744532523875,0.29324154,594.15,593.06,4.722234]
[1744532523876,0.30972771,594.09,593.06,4.722234]
[1744532524079,0.30972771,594.08,593.06,4.722234]
[1744532524277,0.30972771,594.07,593.06,4.722234]
[1744532524481,0.30972771,594.06,593.06,4.722234]
[1744532524682,0.30972771,594.05,593.06,4.722234]
[1744532524876,0.30972771,594.06,593.06,4.722234]
[1744532525079,0.30972771,594.05,593.06,4.722234]
[1744532525277,0.30972771,594.04,593.06,4.722234]
[1744532525477,0.30972771,594.03,593.06,4.722234]
[1744532525676,0.30978572,594.02,593.06,4.722234]
[1744532525877,0.30978572,594.01,593.06,4.722234]
[1744532526079,0.30978572,594.0,593.06,4.722234]
[1744532526282,0.30978572,593.99,593.06,4.722234]
[1744532526580,1.28407166,593.96,593.06,4.722234]
[1744532526882,0.30978572,593.95,593.06,4.722234]
[1744532528582,0.29329097,593.94,593.06,4.722234]
[1744532528991,0.30978572,593.93,593.06,4.722234]
[1744532535090,0.29329097,593.94,593.06,4.722234]
[1744532535294,0.30978773,593.93,593.06,4.722234]
[1744532536595,0.30978773,594.13,593.06,4.722234]
[1744532536794,0.30978773,594.12,593.06,4.722234]
[1744532537090,0.30978773,594.11,593.06,4.722234]
[1744532537296,0.30978773,594.1,593.06,4.722234]
[1744532537490,0.30978773,594.09,593.06,4.722234]
[1744532537791,0.30978773,594.08,593.06,4.722234]
[1744532537995,0.30978773,594.07,593.06,4.722234]
[1744532538491,0.30978773,594.06,593.06,4.722234]
[1744532538797,0.30978773,594.05,593.06,4.722234]
[1744532538991,0.30978773,594.04,593.06,4.722234]
[1744532539190,0.30978773,594.03,593.06,4.722234]
[1744532539495,0.30978773,594.02,593.06,4.722234]
[1744532539696,0.30978773,594.01,593.06,4.722234]
[1744532539897,0.30980001,594.0,593.06,4.722234]
[1744532540198,0.30980001,593.99,593.06,4.722234]
[1744532540497,0.30980001,593.98,593.06,4.722234]
[1744532540697,0.29327861,593.98,593.06,4.722234]
[1744532540897,0.30980001,593.97,593.06,4.722234]
[1744532542602,0.30980001,593.96,593.06,4.722234]
[1744532542798,0.30980001,594.11,593.06,4.722234]
[1744532542999,1.28407166,594.12,593.06,4.722234]
[1744532543203,0.30980077,594.11,593.06,4.722234]
[1744532543503,0.30980077,594.1,593.06,4.722234]
[1744532543702,0.30980077,594.09,593.06,4.722234]
[1744532544002,0.30980077,594.08,593.06,4.722234]
[1744532544296,0.30980077,594.07,593.06,4.722234]
[1744532544503,0.30980077,594.06,593.06,4.722234]
[1744532544703,0.30980077,594.05,593.06,4.722234]
[1744532544901,0.30980077,594.04,593.06,4.722234]
[1744532545102,0.30980077,594.03,593.06,4.722234]
[1744532545303,0.30980077,594.09,593.06,4.722234]
[1744532545500,0.30980077,594.08,593.06,4.722234]
[1744532545700,0.30980077,594.07,593.06,4.722234]
[1744532545908,0.30980077,594.06,593.06,4.722234]
[1744532546105,0.30980077,594.05,593.06,4.722234]
[1744532546400,0.30980077,594.04,593.06,4.722234]
[1744532546602,0.30980077,594.03,593.06,4.722234]
[1744532546803,0.30980077,594.02,593.06,4.722234]
[1744532547007,0.30980077,594.01,593.06,4.722234]
[1744532547207,0.30980077,594.0,593.06,4.722234]
[1744532547406,0.30980077,593.99,593.06,4.722234]
[1744532547609,0.30980077,594.09,593.06,4.722234]
[1744532547905,0.64645576,594.08,593.06,4.385]
[1744532548110,0.64646143,594.07,593.06,4.385]
[1744532548310,0.6464671,594.06,593.06,4.385]
[1744532548511,0.64647276,594.05,593.06,4.385]
[1744532548811,0.64647843,594.04,593.06,4.385]
[1744532549010,0.6464841,594.03,593.06,4.385]
[1744532549311,0.64648977,594.02,593.06,4.385]
[1744532549511,0.64649543,594.01,593.06,4.385]
[1744532549706,0.30980077,594.0,593.06,4.385]
[1744532549907,0.30980077,593.99,593.06,4.385]
[1744532550114,0.30980077,593.98,593.06,4.385]
[1744532550312,0.30980077,593.97,593.06,4.385]
[1744532550506,0.30980077,593.96,593.06,4.385]
[1744532550706,0.30980077,593.95,593.06,4.385]
[1744532551011,0.30987053,593.94,593.06,4.385]
[1744532551412,0.30987053,593.93,593.06,4.385]
[1744532551606,0.30987053,593.92,593.06,4.385]
[1744532551808,0.30987053,593.91,593.06,4.385]
[1744532552008,0.30987053,593.9,593.06,4.385]
[1744532552308,0.30987053,593.89,593.06,4.385]
[1744532552506,0.30987053,593.88,593.06,4.385]
[1744532552708,0.30987053,593.87,593.06,4.385]
[1744532552909,0.30987053,593.86,593.06,4.385]
[1744532553108,0.30987053,593.85,593.06,4.385]
[1744532553306,0.30987053,593.84,593.06,4.385]
[1744532553608,0.30987053,593.83,593.06,4.385]
[1744532553811,0.30987053,594.0,593.06,4.385]
[1744532554011,0.29335401,593.82,593.06,4.385]
[1744532554212,0.30990543,593.81,593.06,4.385]
[1744532554607,0.30990543,593.98,593.06,4.385]
[1744532554811,0.30990543,593.97,593.06,4.385]
[1744532555109,0.64662844,593.96,593.06,4.385]
[1744532555311,0.64663411,593.95,593.06,4.385]
[1744532555509,0.33673435,593.94,593.06,4.385]
[1744532555714,0.30990517,593.93,593.06,4.385]
[1744532555913,0.64665085,593.92,593.06,4.385]
[1744532556213,0.64665652,593.91,593.06,4.385]
[1744532556412,0.64666219,593.9,593.06,4.385]
[1744532556613,0.64666787,593.89,593.06,4.385]
[1744532556914,0.30990517,593.88,593.06,4.385]
[1744532557214,0.30990517,593.87,593.06,4.385]
[1744532557413,0.30990517,593.86,593.06,4.385]
[1744532557612,0.30990517,593.85,593.06,4.385]
[1744532557808,0.30990517,593.88,593.06,4.385]
[1744532558013,0.30990517,593.87,593.06,4.385]
[1744532558214,0.30990517,593.86,593.06,4.385]
[1744532558414,0.30990517,593.85,593.06,4.385]
[1744532558610,0.29335896,593.85,593.06,4.385]
[1744532558811,0.30988195,593.84,593.06,4.385]
[1744532560508,0.3367627,593.89,593.06,4.385]
[1744532560714,0.30987774,593.88,593.06,4.385]
[1744532560914,0.30987774,593.87,593.06,4.385]
[1744532561114,0.30987774,593.86,593.06,4.385]
[1744532561313,0.30987774,593.85,593.06,4.385]
[1744532561512,0.30987774,593.84,593.06,4.385]
[1744532561712,0.29334907,593.85,593.06,4.385]
[1744532561917,0.30987774,593.83,593.06,4.385]
[1744532562113,0.30987774,593.82,593.06,4.385]
[1744532562313,0.30987774,593.81,593.06,4.385]
[1744532562613,0.30987774,593.8,593.06,4.385]
[1744532562818,0.30987774,593.79,593.06,4.385]
[1744532563019,0.30987774,593.78,593.06,4.385]
[1744532563217,0.30987774,593.77,593.06,4.385]
[1744532563416,0.30987774,593.76,593.06,4.385]
[1744532563616,0.3367627,593.89,593.06,4.385]
[1744532563818,0.29335401,593.76,593.06,4.385]
[1744532564016,0.30987889,593.75,593.06,4.385]
[1744532564214,0.30987889,593.88,593.06,4.385]
[1744532564413,0.30987889,593.87,593.06,4.385]
[1744532564618,0.30987889,593.86,593.06,4.385]
[1744532564818,0.30987889,593.85,593.06,4.385]
[1744532565119,0.3367627,593.89,593.06,4.385]
[1744532565120,0.30987889,593.84,593.06,4.385]
[1744532565318,0.30987889,593.83,593.06,4.385]
[1744532565519,0.30987889,593.82,593.06,4.385]
[1744532565820,0.30987889,593.81,593.06,4.385]
[1744532566021,0.30987889,593.8,593.06,4.385]
[1744532566220,0.30987889,593.79,593.06,4.385]
[1744532566420,0.30987889,593.78,593.06,4.385]
[1744532566724,0.30987889,593.77,593.06,4.385]
[1744532566919,0.30987889,593.76,593.06,4.385]
[1744532567117,0.30987889,593.88,593.06,4.385]
[1744532567317,0.30987889,593.87,593.06,4.385]
[1744532567521,0.30987889,593.86,593.06,4.385]
[1744532567722,0.30987889,593.85,593.06,4.385]
[1744532568021,0.30987889,593.84,593.06,4.385]
[1744532568322,0.29334907,593.87,593.06,4.385]
[1744532568523,0.3098743,593.86,593.06,4.385]
[1744532568723,0.3098743,593.85,593.06,4.385]
[1744532569018,0.3098743,593.84,593.06,4.385]
[1744532569223,0.3098743,593.83,593.06,4.385]
[1744532569425,0.3098743,593.82,593.06,4.385]
[1744532569619,0.3098743,593.81,593.06,4.385]
[1744532569818,0.3098743,593.8,593.06,4.385]
[1744532570021,0.3098743,593.79,593.06,4.385]
[1744532570224,0.3098743,593.81,593.06,4.385]
[1744532571525,0.29335154,593.82,593.06,4.385]
[1744532571722,0.30988026,593.81,593.06,4.385]
[1744532572622,0.30988026,593.8,593.06,4.385]
[1744532572826,0.30988026,593.88,593.06,4.385]
[1744532573026,0.30988026,593.87,593.06,4.385]
[1744532573225,0.30988026,593.86,593.06,4.385]
[1744532573422,0.30988026,593.88,593.06,4.385]
[1744532573626,0.29334907,593.85,593.06,4.385]
[1744532573824,0.30988026,593.84,593.06,4.385]
[1744532574728,0.29334907,593.85,593.06,4.385]
[1744532574927,0.3098681,593.83,593.06,4.385]
[1744532575128,0.3098681,593.82,593.06,4.385]
[1744532575325,0.3098681,593.84,593.06,4.385]
[1744532576229,0.29334907,593.85,593.06,4.385]
[1744532576430,0.3098229,593.84,593.06,4.385]
[1744532578726,0.3098229,593.83,593.06,4.385]
[1744532578930,0.3098229,593.88,593.06,4.385]
[1744532579126,0.3098229,593.87,593.06,4.385]
[1744532579326,0.3098229,593.88,593.06,4.385]
[1744532579530,0.30981704,593.87,593.06,4.385]
[1744532579726,0.29331693,593.87,593.06,4.385]
[1744532579925,0.30981704,593.86,593.06,4.385]
[1744532581633,0.30981704,593.88,593.06,4.385]
[1744532581827,0.30981704,593.87,593.06,4.385]
[1744532582025,0.30981704,593.88,593.06,4.385]
[1744532582229,0.30981704,593.87,593.06,4.385]
[1744532582428,0.30981704,593.88,593.06,4.385]
[1744532582629,0.29331693,593.86,593.06,4.385]
[1744532582829,0.30981704,593.85,593.06,4.385]
[1744532583831,0.30981916,593.84,593.06,4.385]
[1744532584037,0.30981916,593.85,593.06,4.385]
[1744532584237,0.30981916,593.84,593.06,4.385]
[1744532584437,0.30981916,593.85,593.06,4.385]
[1744532584638,0.30981916,593.88,593.06,4.385]
[1744532584838,0.30981916,593.87,593.06,4.385]
[1744532585034,0.30981916,593.86,593.06,4.385]
[1744532585236,0.30981916,593.88,593.06,4.385]
[1744532585432,0.30984337,593.87,593.06,4.385]
[1744532585632,0.29334165,593.85,593.06,4.385]
[1744532585837,0.30984337,593.84,593.06,4.385]
[1744532586434,0.30984337,593.83,593.06,4.385]
[1744532586640,0.30984337,593.84,593.06,4.385]
[1744532586840,0.30984337,593.83,593.06,4.385]
[1744532587037,0.30984337,593.82,593.06,4.385]
[1744532587235,0.30984337,593.84,593.06,4.385]
[1744532587438,0.30984337,593.83,593.06,4.385]
[1744532587638,0.30984337,593.88,593.06,4.385]
[1744532587835,0.30984337,593.87,593.06,4.385]
[1744532588040,0.30984337,593.86,593.06,4.385]
[1744532588241,0.30984337,593.85,593.06,4.385]
[1744532588435,0.30984337,593.84,593.06,4.385]
[1744532588639,0.30984337,593.83,593.06,4.385]
[1744532588839,0.30984337,593.82,593.06,4.385]
[1744532589041,0.30984337,593.84,593.06,4.385]
[1744532589337,0.30984337,593.83,593.06,4.385]
[1744532589542,0.30984337,593.84,593.06,4.385]
[1744532589743,0.30984337,593.83,593.06,4.385]
[1744532589938,0.30984337,593.84,593.06,4.385]
[1744532590643,0.30984337,593.83,593.06,4.385]
[1744532590837,0.30984337,593.88,593.06,4.385]
[1744532591543,0.29336885,593.87,593.06,4.385]
[1744532591943,0.30990799,593.86,593.06,4.385]
[1744532593544,0.30990799,593.88,593.06,4.385]
[1744532593746,0.30990799,593.87,593.06,4.385]
[1744532594046,0.30990799,593.86,593.06,4.385]
[1744532594247,0.30990799,593.88,593.06,4.385]
[1744532594547,0.29337133,593.85,593.06,4.385]
[1744532594846,0.30990799,593.84,593.06,4.385]
[1744532596546,0.30990799,593.88,593.06,4.385]
[1744532596747,0.30990799,593.87,593.06,4.385]
[1744532596945,0.30990799,593.86,593.06,4.385]
[1744532597245,0.30990799,593.85,593.06,4.385]
[1744532597647,0.30990799,593.84,593.06,4.385]
[1744532597945,0.29337256,593.85,593.06,4.385]
[1744532598145,0.30990492,593.84,593.06,4.385]
[1744532598345,0.30990492,593.83,593.06,4.385]
[1744532598541,0.30990492,593.82,593.06,4.385]
[1744532598741,0.29337256,593.85,593.06,4.385]
[1744532598742,0.30990492,593.81,593.06,4.385]
[1744532598946,0.30990492,593.8,593.06,4.385]
[1744532599246,0.30990492,593.79,593.06,4.385]
[1744532599643,0.33676837,593.88,593.06,4.385]
[1744532599845,0.30991321,593.87,593.06,4.385]
[1744532600142,1.28407166,593.8,593.06,4.385]
[1744532600343,0.30991321,593.79,593.06,4.385]
[1744532600741,0.60330556,593.79,593.06,4.385]
[1744532600942,0.30991321,593.78,593.06,4.385]
[1744532602539,0.30991321,593.77,593.06,4.385]
[1744532602742,0.33677971,593.86,593.06,4.385]
[1744532602946,0.30993105,593.85,593.06,4.385]
[1744532603242,0.33679105,593.84,593.06,4.385]
[1744532603446,0.30993105,593.83,593.06,4.385]
[1744532604347,0.63017598,593.84,593.06,4.385]
[1744532604646,0.30993416,593.83,593.06,4.385]
[1744532605848,0.33679105,593.84,593.06,4.385]
[1744532606049,0.30993026,593.83,593.06,4.385]
[1744532606648,0.2933874,593.82,593.06,4.385]
[1744532606948,0.30993026,593.81,593.06,4.385]
[1744532607447,0.2933874,593.82,593.06,4.385]
[1744532607649,0.30993097,593.81,593.06,4.385]
[1744532608545,0.30993097,593.83,593.06,4.385]
[1744532608746,0.2933874,593.8,593.06,4.385]
[1744532608944,0.30993097,593.79,593.06,4.385]
[1744532609546,0.30993097,593.78,593.06,4.385]
[1744532609849,0.30993097,593.77,593.06,4.385]
[1744532610049,0.30993097,593.76,593.06,4.385]
[1744532610250,0.30993097,593.75,593.06,4.385]
[1744532610443,0.30993097,593.74,593.06,4.385]
[1744532610748,0.30993097,593.73,593.06,4.385]
[1744532610950,0.30993097,593.72,593.06,4.385]
[1744532611150,0.30993097,593.71,593.06,4.385]
[1744532611450,0.30993097,593.7,593.06,4.385]
[1744532611648,0.30993097,593.69,593.06,4.385]
[1744532611847,0.30993097,593.68,593.06,4.385]
[1744532612043,0.30993097,593.83,593.06,4.385]
[1744532612252,0.30995538,593.82,593.06,4.385]
[1744532612450,0.64676344,593.81,593.06,4.385]
[1744532612650,0.30995538,593.8,593.06,4.385]
[1744532612844,0.30995538,593.79,593.06,4.385]
[1744532613051,0.30995538,593.78,593.06,4.385]
[1744532613252,0.30995538,593.77,593.06,4.385]
[1744532613553,0.30995538,593.76,593.06,4.385]
[1744532613854,0.30995538,593.75,593.06,4.385]
[1744532614052,0.30995538,593.74,593.06,4.385]
[1744532614356,0.30995538,593.73,593.06,4.385]
[1744532614557,0.30995538,593.72,593.06,4.385]
[1744532614855,0.30995538,593.71,593.06,4.385]
[1744532615054,0.30995538,593.7,593.06,4.385]
[1744532615256,0.2934109,593.72,593.06,4.385]
[1744532615453,0.30995175,593.71,593.06,4.385]
[1744532615657,0.30995175,593.7,593.06,4.385]
[1744532615954,0.30995175,593.69,593.06,4.385]
[1744532616153,0.30995175,593.68,593.06,4.385]
[1744532616362,0.30995175,593.71,593.06,4.385]
[1744532616657,0.2934109,593.72,593.06,4.385]
[1744532616658,0.30995175,593.7,593.06,4.385]
[1744532616857,0.30995175,593.69,593.06,4.385]
[1744532617058,0.30995175,593.71,593.06,4.385]
[1744532617258,0.30995175,593.7,593.06,4.385]
[1744532617458,0.30995175,593.69,593.06,4.385]
[1744532617660,0.30995175,593.76,593.06,4.385]
[1744532617860,0.30995175,593.75,593.06,4.385]
[1744532618062,0.30995175,593.74,593.06,4.385]
[1744532618360,0.30995175,593.73,593.06,4.385]
[1744532618561,0.30995175,593.72,593.06,4.385]
[1744532618757,0.30995175,593.71,593.06,4.385]
[1744532618962,0.30995175,593.72,593.06,4.385]
[1744532619163,0.30995175,593.71,593.06,4.385]
[1744532619362,0.30995175,593.7,593.06,4.385]
[1744532619557,0.30995175,593.69,593.06,4.385]
[1744532619762,0.30995175,593.72,593.06,4.385]
[1744532619961,0.30995175,593.71,593.06,4.385]